fUSD/lending_fUSD_20250119
["ID","MTS","AMOUNT","RATE_DAILY","PERIOD"]
[349552408,1737292268121,-500.0,0.00020273,2]
[349552409,1737292268130,-500.0,0.00020273,2]
[349552410,1737292268140,-329.13184451,0.00020273,2]
[349552411,1737292268149,-702.65,0.00020273,2]
[349552412,1737292268158,-500.0,0.00020273,2]
[349552413,1737292268167,-440.40264742,0.00020273,2]
[349552414,1737292268177,-500.0,0.00020273,2]
[349552415,1737292268192,-200.63195526,0.00020273,2]
[349552416,1737292268202,-500.0,0.00020273,2]
[349552417,1737292268211,-500.0,0.00020273,2]
[349552418,1737292268221,-502.3259214,0.00020273,2]
[349552419,1737292268231,-500.0,0.00020273,2]
[349552420,1737292268240,-431.53069898,0.00020273,2]
[349552421,1737292268250,-271.22139575,0.00020273,2]
[349552422,1737292268259,-422.68248152,0.00020273,2]
[349552423,1737292268269,-500.0,0.00020273,2]
[349552424,1737292268278,-500.0,0.00020273,2]
[349552425,1737292268287,-500.0,0.00020273,2]
[349552426,1737292268297,-500.0,0.00020273,2]
[349552427,1737292268307,-500.0,0.00020273,2]
[349552428,1737292268316,-586.1,0.00020273,2]
[349552429,1737292268326,-500.0,0.00020273,2]
[349552430,1737292268335,-500.0,0.00020273,2]
[349552431,1737292268347,-500.0,0.00020273,2]
[349552432,1737292268358,-215.07668471,0.00020273,2]
[349552433,1737292268368,-152.03956248,0.00020273,2]
[349552434,1737292268378,-500.0,0.00020273,2]
[349552435,1737292268387,-200.0,0.00020273,2]
[349552436,1737292268397,-500.0,0.00020273,2]
[349552437,1737292268407,-500.0,0.00020273,2]
[349552438,1737292268417,-525.04,0.00020273,2]
[349552439,1737292268426,-500.0,0.00020273,2]
[349552440,1737292268438,-500.0,0.00020273,2]
[349552441,1737292268448,-500.0,0.00020273,2]
[349552442,1737292268458,-500.0,0.00020273,2]
[349552443,1737292268467,-500.0,0.00020273,2]
[349552444,1737292268477,-500.0,0.00020273,2]
[349552445,1737292268487,-500.0,0.00020273,2]
[349552446,1737292268497,-500.0,0.00020273,2]
[349552447,1737292268508,-500.0,0.00020273,2]
[349552448,1737292268518,-688.38,0.00020273,2]
[349552449,1737292268527,-500.0,0.00020273,2]
[349552450,1737292268537,-581.31,0.00020273,2]
[349552451,1737292268548,-500.0,0.00020273,2]
[349552452,1737292268558,-500.0,0.00020273,2]
[349552453,1737292268568,-500.0,0.00020273,2]
[349552454,1737292268578,-500.0,0.00020273,2]
[349552455,1737292268587,-500.0,0.00020273,2]
[349552456,1737292268598,-500.0,0.00020273,2]
[349552457,1737292268607,-500.0,0.00020273,2]
[349552458,1737292268616,-500.0,0.00020273,2]
[349552459,1737292268626,-500.0,0.00020273,2]
[349552460,1737292268636,-500.0,0.00020273,2]
[349552461,1737292268645,-500.0,0.00020273,2]
[349552462,1737292268654,-500.0,0.00020273,2]
[349552463,1737292268663,-500.0,0.00020273,2]
[349552464,1737292268675,-705.18,0.00020273,2]
[349552465,1737292268687,-500.0,0.00020273,2]
[349552466,1737292268698,-500.0,0.00020273,2]
[349552467,1737292268708,-500.0,0.00020273,2]
[349552468,1737292268718,-605.22,0.00020273,2]
[349552469,1737292268733,-500.0,0.00020273,2]
[349552470,1737292268744,-900.64,0.00020273,2]
[349552471,1737292268754,-540.6,0.00020273,2]
[349552472,1737292268766,-631.32,0.00020273,2]
[349552473,1737292268776,-714.49,0.00020273,2]
[349552474,1737292268786,-500.0,0.00020273,2]
[349552475,1737292268795,-500.0,0.00020273,2]
[349552476,1737292268805,-500.0,0.00020273,2]
[349552477,1737292268816,-484.62456103,0.00020273,2]
[349552478,1737292268825,-500.0,0.00020273,2]
[349552479,1737292268835,-500.0,0.00020273,2]
[349552480,1737292268844,-500.0,0.00020273,2]
[349552481,1737292268854,-522.48411876,0.00020273,2]
[349552482,1737292268864,-500.0,0.00020273,2]
[349552483,1737292268874,-500.0,0.00020273,2]
[349552484,1737292268883,-500.0,0.00020273,2]
[349552485,1737292268892,-503.31,0.00020273,2]
[349552486,1737292268902,-500.0,0.00020273,2]
[349552487,1737292268911,-500.0,0.00020273,2]
[349552488,1737292268920,-500.0,0.00020273,2]
[349552489,1737292268930,-500.0,0.00020273,2]
[349552490,1737292268943,-989.64,0.00020273,2]
[349552491,1737292268953,-928.09,0.00020273,2]
[349552492,1737292268962,-500.0,0.00020273,2]
[349552493,1737292269139,-500.0,0.00020273,2]
[349552494,1737292269149,-500.0,0.00020273,2]
[349552495,1737292269159,-565.7,0.00020273,2]
[349552496,1737292269168,-500.0,0.00020273,2]
[349552497,1737292269178,-608.22,0.00020273,2]
[349552498,1737292269189,-500.0,0.00020273,2]
[349552499,1737292269199,-500.0,0.00020273,2]
[349552500,1737292269208,-500.0,0.00020273,2]
[349552501,1737292269218,-500.0,0.00020273,2]
[349552502,1737292269227,-501.76,0.00020273,2]
[349552503,1737292269236,-500.0,0.00020273,2]
[349552504,1737292269245,-500.0,0.00020273,2]
[349552505,1737292269255,-500.0,0.00020273,2]
[349552506,1737292269264,-500.0,0.00020273,2]
[349552507,1737292269273,-539.94308778,0.00020273,2]
[349552508,1737292269282,-500.0,0.00020273,2]
[349552509,1737292269292,-500.0,0.00020273,2]
[349552510,1737292269301,-500.0,0.00020273,2]
[349552511,1737292269310,-559.09,0.00020273,2]
[349552512,1737292269319,-689.91,0.00020273,2]
[349552513,1737292269327,-500.0,0.00020273,2]
[349552514,1737292269337,-500.0,0.00020273,2]
[349552515,1737292269347,-500.0,0.00020273,2]
[349552516,1737292269357,-548.8,0.00020273,2]
[349552517,1737292269366,-715.56,0.00020273,2]
[349552518,1737292269376,-500.0,0.00020273,2]
[349552519,1737292269386,-804.68,0.00020273,2]
[349552520,1737292269395,-500.0,0.00020273,2]
[349552521,1737292269405,-682.83,0.00020273,2]
[349552522,1737292269414,-500.0,0.00020273,2]
[349552523,1737292269424,-500.0,0.00020273,2]
[349552524,1737292269433,-500.0,0.00020273,2]
[349552525,1737292269444,-1504.76,0.00020273,2]
[349552526,1737292269453,-1070.98,0.00020273,2]
[349552527,1737292269462,-1894.47,0.00020273,2]
[349552528,1737292269475,-500.0,0.00020273,2]
[349552529,1737292269485,-540.8,0.00020273,2]
[349552530,1737292269495,-657.78,0.00020273,2]
[349552531,1737292269504,-1651.79,0.00020273,2]
[349552532,1737292269514,-4965.38,0.00020273,2]
[349552533,1737292269523,-572.04,0.00020273,2]
[349552534,1737292269533,-500.0,0.00020273,2]
[349552535,1737292269543,-500.0,0.00020273,2]
[349552536,1737292269553,-873.98,0.00020273,2]
[349552537,1737292269563,-500.0,0.00020273,2]
[349552538,1737292269573,-500.0,0.00020273,2]
[349552539,1737292269584,-500.0,0.00020273,2]
[349552540,1737292269593,-3347.66,0.00020273,2]
[349552541,1737292269603,-500.0,0.00020273,2]
[349552542,1737292269613,-500.0,0.00020273,2]
[349552543,1737292269624,-872.81,0.00020273,2]
[349552544,1737292269634,-684.55,0.00020273,2]
[349552545,1737292269643,-1325.84,0.00020273,2]
[349552546,1737292269653,-5040.77,0.00020273,2]
[349552547,1737292269662,-500.0,0.00020273,2]
[349552548,1737292269671,-536.4,0.00020273,2]
[349552549,1737292269681,-1617.26,0.00020273,2]
[349552550,1737292269693,-500.0,0.00020273,2]
[349552551,1737292269703,-792.78,0.00020273,2]
[349552552,1737292269713,-904.94,0.00020273,2]
[349552553,1737292269723,-500.0,0.00020273,2]
[349552554,1737292269736,-1822.43,0.00020273,2]
[349552555,1737292269745,-500.0,0.00020273,2]
[349552556,1737292269755,-500.0,0.00020273,2]
[349552557,1737292269767,-500.0,0.00020273,2]
[349552558,1737292269776,-699.95,0.00020273,2]
[349552559,1737292269786,-500.0,0.00020273,2]
[349552560,1737292269795,-234.31419815,0.00020273,2]
[349552561,1737292269805,-3210.43,0.00020273,2]
[349552562,1737292269815,-500.0,0.00020273,2]
[349552563,1737292269825,-1000.0,0.00020273,14]
[349552564,1737292269835,-1462.05,0.00020273,2]
[349552565,1737292269846,-540.89,0.00020273,2]
[349552566,1737292269856,-500.0,0.00020273,2]
[349552567,1737292269866,-500.0,0.00020273,2]
[349552568,1737292269876,-502.93,0.00020273,2]
[349552569,1737292269885,-644.72,0.00020273,2]
[349552570,1737292269898,-1590.53,0.00020273,2]
[349552571,1737292269908,-520.83,0.00020273,2]
[349552572,1737292269918,-500.0,0.00020273,2]
[349552573,1737292269927,-500.0,0.00020273,2]
[349552574,1737292269938,-500.0,0.00020273,2]
[349552575,1737292269947,-695.52,0.00020273,2]
[349552576,1737292269956,-500.0,0.00020273,2]
[349552577,1737292269966,-951.41,0.00020273,2]
[349552578,1737292269976,-500.0,0.00020273,2]
[349552579,1737292269986,-735.48,0.00020273,2]
[349552580,1737292269996,-500.0,0.00020273,2]
[349552581,1737292270007,-500.0,0.00020273,2]
[349552582,1737292270017,-702.45,0.00020273,2]
[349552583,1737292270027,-500.0,0.00020273,2]
[349552584,1737292270037,-500.0,0.00020273,2]
[349552585,1737292270047,-2463.65,0.00020273,2]
[349552586,1737292270058,-500.0,0.00020273,2]
[349552587,1737292270067,-500.0,0.00020273,2]
[349552588,1737292270077,-500.0,0.00020273,2]
[349552589,1737292270087,-1434.63,0.00020273,2]
[349552590,1737292270096,-500.0,0.00020273,2]
[349552591,1737292270107,-500.0,0.00020273,2]
[349552592,1737292270116,-500.0,0.00020273,2]
[349552593,1737292270125,-882.85,0.00020273,2]
[349552594,1737292270136,-500.0,0.00020273,2]
[349552595,1737292270145,-1830.16,0.00020273,2]
[349552596,1737292270156,-500.0,0.00020273,2]
[349552597,1737292270166,-795.55,0.00020273,2]
[349552598,1737292270175,-500.0,0.00020273,2]
[349552599,1737292270185,-2062.48,0.00020273,2]
[349552600,1737292270195,-517.3,0.00020273,2]
[349552601,1737292270206,-3504.96,0.00020273,2]
[349552602,1737292270216,-500.0,0.00020273,2]
[349552603,1737292270225,-782.55,0.00020273,2]
[349552604,1737292270235,-4164.88,0.00020273,2]
[349552605,1737292270245,-500.0,0.00020273,2]
[349552606,1737292270255,-608.36,0.00020273,2]
[349552607,1737292270267,-1287.98,0.00020273,2]
[349552608,1737292270276,-976.69,0.00020273,2]
[349552609,1737292270285,-876.74,0.00020273,2]
[349552610,1737292270295,-500.0,0.00020273,2]
[349552611,1737292270304,-500.0,0.00020273,2]
[349552612,1737292270314,-500.0,0.00020273,2]
[349552613,1737292270323,-3376.63,0.00020273,2]
[349552614,1737292270333,-5837.31,0.00020273,2]
[349552615,1737292270342,-500.0,0.00020273,2]
[349552616,1737292270351,-500.0,0.00020273,2]
[349552617,1737292270361,-1654.57,0.00020273,2]
[349552618,1737292270370,-500.0,0.00020273,2]
[349552619,1737292270379,-500.0,0.00020273,2]
[349552620,1737292270389,-590.84,0.00020273,2]
[349552621,1737292270399,-1000.0,0.00020273,2]
[349552622,1737292270409,-5578.33,0.00020273,2]
[349552623,1737292270419,-500.0,0.00020273,2]
[349552624,1737292270428,-500.0,0.00020273,2]
[349552625,1737292270438,-500.0,0.00020273,2]
[349552626,1737292270447,-1063.88,0.00020273,2]
[349552627,1737292270457,-837.48,0.00020273,2]
[349552628,1737292270466,-500.0,0.00020273,2]
[349552629,1737292270476,-500.0,0.00020273,2]
[349552630,1737292270486,-500.0,0.00020273,2]
[349552631,1737292270495,-500.0,0.00020273,2]
[349552632,1737292270504,-5505.67,0.00020273,2]
[349552633,1737292270514,-816.79,0.00020273,2]
[349552634,1737292270523,-1142.76,0.00020273,2]
[349552635,1737292270533,-500.0,0.00020273,2]
[349552636,1737292270543,-587.96,0.00020273,2]
[349552637,1737292270552,-1323.26,0.00020273,2]
[349552638,1737292270563,-517.87201861,0.00020273,2]
[349552639,1737292270574,-500.0,0.00020273,2]
[349552640,1737292270583,-1361.89,0.00020273,2]
[349552641,1737292270593,-564.48,0.00020273,2]
[349552642,1737292270603,-7457.3,0.00020273,2]
[349552643,1737292270613,-1474.97,0.00020273,2]
[349552644,1737292270623,-7941.18,0.00020273,2]
[349552645,1737292270633,-1015.14,0.00020273,2]
[349552646,1737292270644,-500.0,0.00020273,2]
[349552647,1737292270654,-570.38,0.00020273,2]
[349552648,1737292270664,-500.0,0.00020273,2]
[349552649,1737292270674,-500.0,0.00020273,2]
[349552650,1737292270684,-823.65,0.00020273,2]
[349552651,1737292270695,-753.37,0.00020273,2]
[349552652,1737292270705,-1285.82,0.00020273,2]
[349552653,1737292270715,-2600.78,0.00020273,2]
[349552654,1737292270726,-500.0,0.00020273,2]
[349552655,1737292270736,-500.0,0.00020273,2]
[349552656,1737292270745,-566.95,0.00020273,2]
[349552657,1737292270755,-511.36,0.00020273,2]
[349552658,1737292270767,-500.0,0.00020273,2]
[349552659,1737292270776,-500.0,0.00020273,2]
[349552660,1737292270785,-629.83,0.00020273,2]
[349552661,1737292270795,-1482.04,0.00020273,2]
[349552662,1737292270807,-681.68,0.00020273,2]
[349552663,1737292270816,-1930.92,0.00020273,2]
[349552664,1737292270826,-500.0,0.00020273,2]
[349552665,1737292270835,-716.2,0.00020273,2]
[349552666,1737292270845,-1697.51,0.00020273,2]
[349552667,1737292270854,-500.0,0.00020273,2]
[349552668,1737292270864,-527.73,0.00020273,2]
[349552669,1737292270873,-500.0,0.00020273,2]
[349552670,1737292270883,-500.0,0.00020273,2]
[349552671,1737292270892,-500.0,0.00020273,2]
[349552672,1737292270902,-500.0,0.00020273,2]
[349552673,1737292270911,-758.95,0.00020273,2]
[349552674,1737292270921,-500.0,0.00020273,2]
[349552675,1737292270930,-2945.05,0.00020273,2]
[349552676,1737292270941,-2412.03,0.00020273,2]
[349552677,1737292270951,-513.82876711,0.00020273,2]
[349552678,1737292270961,-1273.31,0.00020273,2]
[349552679,1737292270971,-500.0,0.00020273,2]
[349552680,1737292270980,-500.0,0.00020273,2]
[349552681,1737292270989,-500.0,0.00020273,2]
[349552682,1737292270999,-2538.98,0.00020273,2]
[349552683,1737292271009,-9176.13,0.00020273,2]
[349552684,1737292271018,-1804.75,0.00020273,2]
[349552685,1737292271028,-500.0,0.00020273,2]
[349552686,1737292271037,-607.32,0.00020273,2]
[349552687,1737292271046,-500.0,0.00020273,2]
[349552688,1737292271055,-519.43148214,0.00020273,2]
[349552689,1737292271065,-1312.39,0.00020273,2]
[349552690,1737292271073,-783.66,0.00020273,2]
[349552691,1737292271082,-1802.63,0.00020273,2]
[349552692,1737292271092,-500.6,0.00020273,2]
[349552693,1737292271102,-1796.07,0.00020273,2]
[349552694,1737292271113,-1461.42,0.00020273,2]
[349552695,1737292271123,-1263.38,0.00020273,2]
[349552696,1737292271133,-500.0,0.00020273,2]
[349552697,1737292271142,-500.0,0.00020273,2]
[349552698,1737292271152,-500.0,0.00020273,2]
[349552699,1737292271162,-2172.3,0.00020273,2]
[349552700,1737292271172,-524.52,0.00020273,2]
[349552701,1737292271182,-618.96,0.00020273,2]
[349552702,1737292271193,-2037.95,0.00020273,2]
[349552703,1737292271204,-2569.61,0.00020273,2]
[349552704,1737292271214,-1016.82,0.00020273,2]
[349552705,1737292271224,-1022.09,0.00020273,2]
[349552706,1737292271233,-1421.94,0.00020273,2]
[349552707,1737292271243,-500.0,0.00020273,2]
[349552708,1737292271252,-1228.43,0.00020273,2]
[349552709,1737292271262,-9355.91,0.00020273,2]
[349552710,1737292271271,-1836.55,0.00020273,2]
[349552711,1737292271281,-500.0,0.00020273,2]
[349552712,1737292271290,-500.0,0.00020273,2]
[349552713,1737292271299,-903.35,0.00020273,2]
[349552714,1737292271309,-1068.47,0.00020273,2]
[349552715,1737292271320,-500.0,0.00020273,2]
[349552716,1737292271330,-507.31740979,0.00020273,2]
[349552717,1737292271340,-500.0,0.00020273,2]
[349552718,1737292271350,-756.47,0.00020273,2]
[349552719,1737292271360,-500.0,0.00020273,2]
[349552720,1737292271369,-500.0,0.00020273,2]
[349552721,1737292271379,-632.21,0.00020273,2]
[349552722,1737292271389,-2662.17,0.00020273,2]
[349552723,1737292271402,-500.0,0.00020273,2]
[349552724,1737292271414,-500.0,0.00020273,2]
[349552725,1737292271427,-500.0,0.00020273,2]
[349552726,1737292271436,-500.0,0.00020273,2]
[349552727,1737292271447,-727.71,0.00020273,2]
[349552728,1737292271459,-868.49,0.00020273,2]
[349552729,1737292271470,-500.0,0.00020273,2]
[349552730,1737292271483,-500.0,0.00020273,2]
[349552731,1737292271492,-1115.03,0.00020273,2]
[349552732,1737292271502,-1374.44,0.00020273,2]
[349552733,1737292271512,-500.0,0.00020273,2]
[349552734,1737292271522,-527.28902091,0.00020273,2]
[349552735,1737292271531,-500.0,0.00020273,2]
[349552736,1737292271543,-909.83,0.00020273,2]
[349552737,1737292271553,-917.29,0.00020273,2]
[349552738,1737292271563,-2288.34,0.00020273,2]
[349552739,1737292271572,-500.0,0.00020273,2]
[349552740,1737292271581,-198.69770624,0.00020273,2]
[349552741,1737292271590,-500.0,0.00020273,2]
[349552742,1737292271600,-1283.98,0.00020273,2]
[349552743,1737292271610,-500.0,0.00020273,2]
[349552744,1737292271620,-939.9,0.00020273,2]
[349552745,1737292271630,-500.0,0.00020273,2]
[349552746,1737292271639,-864.91,0.00020273,2]
[349552747,1737292271649,-500.0,0.00020273,2]
[349552748,1737292271658,-883.85,0.00020273,2]
[349552749,1737292271667,-1000.54,0.00020273,2]
[349552750,1737292271676,-500.0,0.00020273,2]
[349552751,1737292271686,-788.93,0.00020273,2]
[349552752,1737292271695,-778.32,0.00020273,2]
[349552753,1737292271704,-827.39,0.00020273,2]
[349552754,1737292271714,-500.0,0.00020273,2]
[349552755,1737292271723,-500.0,0.00020273,2]
[349552756,1737292271734,-500.0,0.00020273,2]
[349552757,1737292271743,-200.0,0.00020293,2]
[349552758,1737292271753,-614.67441042,0.00020295,2]
[349552759,1737292271764,-500.99716461,0.00020321,2]
[349552760,1737292271775,-305.15798569,0.00020321,2]
[349552761,1737292271784,-1000.0,0.00020321,2]
[349552762,1737292271794,-707.45229032,0.00020321,2]
[349552763,1737292271803,-242.92,0.00020431,2]
[349552764,1737292271814,-614.67441042,0.00020539,2]
[349552765,1737292271826,-583.61,0.00020545,2]
[349552766,1737292271839,-500.0,0.00020546,2]
[349552767,1737292271848,-1018.517419,0.00020547,2]
[349552768,1737292271858,-543.102051,0.00020547,2]
[349552769,1737292271868,-860.13,0.00020547,2]
[349552770,1737292271879,-500.0,0.00020547,2]
[349552771,1737292271889,-500.0,0.00020547,2]
[349552772,1737292272063,-500.0,0.00020547,2]
[349552773,1737292272073,-210.65668942,0.00020547,2]
[349552774,1737292272083,-410.9434529,0.00020547,2]
[349552775,1737292272092,-500.0,0.00020547,2]
[349552776,1737292272101,-263.078232,0.00020547,2]
[349552777,1737292272110,-500.0,0.00020547,2]
[349552778,1737292272120,-500.0,0.00020547,2]
[349552779,1737292272129,-500.0,0.00020547,2]
[349552780,1737292272138,-530.85,0.00020547,2]
[349552781,1737292272148,-500.0,0.00020547,2]
[349552782,1737292272158,-1210.81,0.00020547,2]
[349552783,1737292272167,-500.0,0.00020547,2]
[349552784,1737292272176,-500.0,0.00020547,2]
[349552785,1737292272186,-500.0,0.00020547,2]
[349552786,1737292272196,-500.0,0.00020547,2]
[349552787,1737292272206,-500.0,0.00020547,2]
[349552788,1737292272216,-500.0,0.00020547,2]
[349552789,1737292272226,-557.27,0.00020547,2]
[349552790,1737292272235,-500.0,0.00020547,2]
[349552791,1737292272245,-709.04,0.00020547,2]
[349552792,1737292272254,-662.42,0.00020547,2]
[349552793,1737292272263,-500.0,0.00020547,2]
[349552794,1737292272272,-500.0,0.00020547,2]
[349552795,1737292272282,-632.54,0.00020547,2]
[349552796,1737292272292,-571.93,0.00020547,2]
[349552797,1737292272302,-500.0,0.00020547,2]
[349552798,1737292272311,-500.0,0.00020547,2]
[349552799,1737292272320,-500.0,0.00020547,2]
[349552800,1737292272330,-500.0,0.00020547,2]
[349552801,1737292272339,-500.0,0.00020547,2]
[349552802,1737292272348,-500.0,0.00020547,2]
[349552803,1737292272357,-500.0,0.00020547,2]
[349552804,1737292272366,-500.0,0.00020547,2]
[349552805,1737292272375,-500.0,0.00020547,2]
[349552806,1737292272385,-500.0,0.00020547,2]
[349552807,1737292272394,-500.0,0.00020547,2]
[349552808,1737292272403,-500.0,0.00020547,2]
[349552809,1737292272412,-500.0,0.00020547,2]
[349552810,1737292272422,-500.0,0.00020547,2]
[349552811,1737292272431,-500.0,0.00020547,2]
[349552812,1737292272443,-580.58,0.00020547,2]
[349552813,1737292272452,-295.745099,0.00020547,2]
[349552814,1737292272462,-295.745099,0.00020547,2]
[349552815,1737292272471,-500.0,0.00020547,2]
[349552816,1737292272480,-500.0,0.00020547,2]
[349552817,1737292272489,-410.69290535,0.00020547,2]
[349552818,1737292272498,-500.0,0.00020547,2]
[349552819,1737292272507,-500.0,0.00020547,2]
[349552820,1737292272516,-500.0,0.00020547,2]
[349552821,1737292272525,-552.70145311,0.00020547,2]
[349552822,1737292272535,-453.6898395,0.00020547,2]
[349552823,1737292272543,-500.0,0.00020547,2]
[349552824,1737292272552,-500.0,0.00020547,2]
[349552825,1737292272561,-934.69,0.00020547,2]
[349552826,1737292272570,-500.0,0.00020547,2]
[349552827,1737292272579,-500.0,0.00020547,2]
[349552828,1737292272587,-500.0,0.00020547,2]
[349552829,1737292272597,-649.72,0.00020547,2]
[349552830,1737292272606,-598.68,0.00020547,2]
[349552831,1737292272614,-500.0,0.00020547,2]
[349552832,1737292272623,-500.0,0.00020547,2]
[349552833,1737292272632,-500.0,0.00020547,2]
[349552834,1737292272641,-500.0,0.00020547,2]
[349552835,1737292272650,-500.0,0.00020547,2]
[349552836,1737292272659,-611.02,0.00020547,2]
[349552837,1737292272668,-500.0,0.00020547,2]
[349552838,1737292272678,-500.0,0.00020547,2]
[349552839,1737292272691,-697.01,0.00020547,2]
[349552840,1737292272700,-500.0,0.00020547,2]
[349552841,1737292272710,-500.0,0.00020547,2]
[349552842,1737292272720,-500.0,0.00020547,2]
[349552843,1737292272735,-245.83312068,0.00020547,2]
[349552844,1737292272744,-500.0,0.00020547,2]
[349552845,1737292272754,-648.1036597,0.00020547,2]
[349552846,1737292272766,-535.62,0.00020547,2]
[349552847,1737292272777,-500.0,0.00020547,2]
[349552848,1737292272785,-500.0,0.00020547,2]
[349552849,1737292272794,-500.0,0.00020547,2]
[349552850,1737292272803,-500.0,0.00020547,2]
[349552851,1737292272812,-500.0,0.00020547,2]
[349552852,1737292272821,-500.0,0.00020547,2]
[349552853,1737292272830,-500.0,0.00020547,2]
[349552854,1737292272840,-500.0,0.00020547,2]
[349552855,1737292272849,-500.0,0.00020547,2]
[349552856,1737292272858,-500.0,0.00020547,2]
[349552857,1737292272867,-500.0,0.00020547,2]
[349552858,1737292272877,-500.0,0.00020547,2]
[349552859,1737292272886,-500.0,0.00020547,2]
[349552860,1737292272895,-500.0,0.00020547,2]
[349552861,1737292272904,-500.0,0.00020547,2]
[349552862,1737292272913,-500.0,0.00020547,2]
[349552863,1737292272922,-500.0,0.00020547,2]
[349552864,1737292272931,-413.85713529,0.00020547,2]
[349552865,1737292272943,-500.0,0.00020547,2]
[349552866,1737292272952,-500.0,0.00020547,2]
[349552867,1737292272962,-500.0,0.00020547,2]
[349552868,1737292272971,-780.34,0.00020547,2]
[349552869,1737292272979,-500.0,0.00020547,2]
[349552870,1737292272989,-512.06,0.00020547,2]
[349552871,1737292272998,-500.0,0.00020547,2]
[349552872,1737292273007,-500.0,0.00020547,2]
[349552873,1737292273016,-500.0,0.00020547,2]
[349552874,1737292273026,-520.43,0.00020547,2]
[349552875,1737292273035,-500.0,0.00020547,2]
[349552876,1737292273045,-500.0,0.00020547,2]
[349552877,1737292273054,-500.0,0.00020547,2]
[349552878,1737292273062,-500.0,0.00020547,2]
[349552879,1737292273072,-500.0,0.00020547,2]
[349552880,1737292273081,-500.0,0.00020547,2]
[349552881,1737292273090,-781.7,0.00020547,2]
[349552882,1737292273100,-500.0,0.00020547,2]
[349552883,1737292273109,-500.0,0.00020547,2]
[349552884,1737292273119,-500.0,0.00020547,2]
[349552885,1737292273128,-500.0,0.00020547,2]
[349552886,1737292273137,-500.0,0.00020547,2]
[349552887,1737292273148,-1479.92,0.00020547,2]
[349552888,1737292273157,-500.0,0.00020547,2]
[349552889,1737292273167,-500.0,0.00020547,2]
[349552890,1737292273176,-500.0,0.00020547,2]
[349552891,1737292273185,-500.0,0.00020547,2]
[349552892,1737292273196,-500.0,0.00020547,2]
[349552893,1737292273205,-500.0,0.00020547,2]
[349552894,1737292273214,-500.0,0.00020547,2]
[349552895,1737292273223,-500.0,0.00020547,2]
[349552896,1737292273232,-500.0,0.00020547,2]
[349552897,1737292273241,-505.19,0.00020547,2]
[349552898,1737292273250,-500.0,0.00020547,2]
[349552899,1737292273259,-500.0,0.00020547,2]
[349552900,1737292273269,-500.0,0.00020547,2]
[349552901,1737292273278,-500.0,0.00020547,2]
[349552902,1737292273286,-500.0,0.00020547,2]
[349552903,1737292273296,-702.65,0.00020547,2]
[349552904,1737292273305,-500.0,0.00020547,2]
[349552905,1737292273314,-500.0,0.00020547,2]
[349552906,1737292273323,-500.0,0.00020547,2]
[349552907,1737292273332,-500.0,0.00020547,2]